[Event "Commonwealth CC-Open 2024"]
[Site "Malacca"]
[Date "2024.02.22"]
[Round "5.26"]
[White "Lim, Xiao Xian Tobias"]
[Black "Sabri, Mohd Saprin"]
[Result "1-0"]
[ECO "B40"]
[WhiteElo "1584"]
[BlackElo "1922"]
[Annotator "RC"]
[PlyCount "101"]
[EventDate "2024.02.21"]
[EventCountry "MAS"]
[SourceTitle "playchess.com"]
[Source "ChessBase"]
[SourceQuality "1"]
[TimeControl "5400+30"]

1. e4 c5 2. Nf3 e6 3. b3 Nf6 4. e5 Nd5 5. g3 d6 6. Bb2 dxe5 7. Nxe5 Be7 8. Bb5+ Nd7 9. Nxd7 Bxd7 10. Bxd7+ Qxd7 11. Bxg7 Rg8 12. Bb2 O-O-O 13. Nc3 Nb4 14. a3 Nc6 15. d3 e5 16. Qh5 f5 17. O-O-O Bf6 18. Na4 Rg5 19. Qf3 b6 20. h4 Rg4 21. Kb1 Kb8 22. Qg2 Nd4 23. Bxd4 Qxd4 24. c3 Qd7 25. Nb2 Qe6 26. Kc2 e4 27. dxe4 Rxd1 28. Rxd1 Qe5 29. Qf3 Rxe4 30. Nc4 Re2+ 31. Rd2 Rxd2+ 32. Kxd2 Qe6 33. Qf4+ Kb7 34. Qxf5 Qxf5 35. Nd6+ Kc6 36. Nxf5 Kd5 37. Kd3 b5 38. Ne3+ Kd6 39. c4 a6 40. a4 bxa4 41. bxa4 Ke6 42. f4 h5 43. Ke4 Bc3 44. f5+ Kd6 45. Nd5 Be1 46. f6 Ke6 47. Kf4 Bd2+ 48. Kf3 Ke5 49. g4 hxg4+ 50. Kxg4 Kd4 {[%emt 1:51:56]} 51. Kh5 {[%emt 1:55:41]} 1-0

[Event "Commonwealth CC-Open 2024"]
[Site "Malacca"]
[Date "2024.02.23"]
[Round "6.1"]
[White "Rohith Krishna S"]
[Black "Sethuraman, S.P."]
[Result "1/2-1/2"]
[ECO "D38"]
[WhiteElo "2410"]
[BlackElo "2594"]
[Annotator "TA"]
[PlyCount "56"]
[EventDate "2024.02.21"]
[EventCountry "MAS"]
[SourceTitle "playchess.com"]
[Source "ChessBase"]
[SourceQuality "1"]
[TimeControl "5400+30"]

{[%evp 12,56,14,8,34,18,21,0,43,26,21,43,41,35,44,40,59,58,54,49,52,0,0,0,0,0,0,-6,0,0,0,0,0,0,0,0,0,0,4,-12,0,0,0,0,0,0,0]} 1. d4 {[%emt 0:10:55]} Nf6 {[%emt 0:00:15]} 2. c4 {[%emt 0:00:08]} e6 {[%emt 0:00:06]} 3. Nf3 {[%emt 0:00:05]} d5 {[%emt 0:00:31]} 4. Nc3 {[%emt 0:00:07]} Bb4 {[%emt 0:00:11]} 5. Qa4+ {[%emt 0:00:11]} Nc6 {[%emt 0:00:07]} 6. e3 {[%emt 0:00:07]} O-O {[%emt 0:00:07]} 7. Bd2 {[%emt 0:00:10]} Re8 {[%emt 0:00:50]} 8. Qc2 {[%emt 0:02:31]} Bf8 {[%emt 0:00:42]} 9. a3 {[%emt 0:00:35]} h6 {[%emt 0:01:14]} 10. Rd1 {[%emt 0:02:58]} a6 {[%emt 0:02:12]} 11. Bc1 {[%emt 0:01:00]} Na5 {[%emt 0:18:13]} 12. c5 {[%emt 0:07:44]} Nc6 {[%emt 0:00:08]} 13. b4 {[%emt 0:00:07]} e5 {[%emt 0:00:19]} 14. dxe5 {[%emt 0:00:11]} Nxe5 {[%emt 0:00:05]} 15. Nxe5 {[%emt 0:04:16]} Rxe5 {[%emt 0:00:11]} 16. h3 {[%emt 0:00:06]} (16. Bd3 $14) 16... a5 $11 {[%emt 0:09:26] The position is equal.} 17. Bd3 {[%emt 0:10:53]} axb4 {[%emt 0:01:15]} 18. axb4 {[%emt 0:00:05]} b6 {[%emt 0:02:12]} 19. Ne2 {[%emt 0:04:22]} (19. O-O $5) 19... bxc5 {[%emt 0:00:23]} (19... Bd7 {looks sharper.} 20. cxb6 Ba4 21. Qb2 Qd6) 20. bxc5 {[%emt 0:00:04]} c6 {[%emt 0:01:31]} 21. Bb2 {[%emt 0:00:55]} Re8 {[%emt 0:01:42]} 22. O-O {[%emt 0:01:09]} Nd7 {[%emt 0:07:47][%cal Bf6d7,Bd7e5,Be5c4,Bc4b2][%mdl 32]} 23. Nd4 {[%emt 0:04:45]} Ne5 {[%emt 0:17:28]} 24. Be2 {[%emt 0:15:50]} Ba6 {[%emt 0:04:56]} 25. e4 {[%emt 0:01:10]} Bxe2 {[%emt 0:03:59]} 26. Nxe2 {[%emt 0:00:05]} Nc4 {[%emt 0:07:17][%cal Oa8a2]} 27. exd5 {[%emt 0:00:55]} cxd5 {[%emt 0:00:16][%cal Oa8a2] [#] ...Ra2! would now be deadly.} 28. Nf4 {[%emt 0:07:36]} Nxb2 {[%emt 0:06:05] Weighted Error Value: White=0.06 (flawless) /Black=0.06 (flawless) .  Mistake:       	White=1     	---        Inaccurate:     	---       	Black=1      OK:         	White=8     	Black=10     Best:        	White=1     	---} 1/2-1/2

[Event "Commonwealth CC-Open 2024"]
[Site "Malacca"]
[Date "2024.02.23"]
[Round "6.2"]
[White "Vaibhav, Suri"]
[Black "Lalit Babu M R"]
[Result "0-1"]
[ECO "C54"]
[WhiteElo "2596"]
[BlackElo "2525"]
[Annotator "TA"]
[PlyCount "71"]
[EventDate "2024.02.21"]
[EventCountry "MAS"]
[SourceTitle "playchess.com"]
[Source "ChessBase"]
[SourceQuality "1"]
[TimeControl "5400+30"]

{[%evp 10,71,13,12,13,7,14,15,13,0,14,11,11,0,0,0,7,-8,0,-4,0,-26,-13,-13,0,-16,-12,-64,0,-22,-2,-252,-224,-246,-241,-260,-221,-414,-429,-404,-425,-429,-433,-435,-331,-377,-381,-395,-373,-384,-369,-397,-398,-409,-404,-386,-381,-531,-531,-531,-504,-539,-541,-511]} 1. e4 {[%emt 0:00:14]} e5 {[%emt 0:01:28]} 2. Nf3 {[%emt 0:00:19]} Nc6 {[%emt 0:00:04]} 3. Bc4 {[%emt 0:00:04]} Nf6 {[%emt 0:00:06]} 4. d3 {[%emt 0:00:02]} Bc5 {[%emt 0:00:07]} 5. O-O {[%emt 0:00:22]} d6 {[%emt 0:00:11]} 6. c3 {[%emt 0:00:06]} a5 {[%emt 0:00:09]} 7. Re1 {[%emt 0:00:09]} O-O {[%emt 0:00:20]} 8. h3 {[%emt 0:00:10]} h6 {[%emt 0:00:48] The position is equal.} 9. Bb3 {[%emt 0:00:27]} Re8 {[%emt 0:24:32]} 10. Nbd2 {[%emt 0:01:00]} b5 {[%emt 0:03:33]} 11. Nf1 {[%emt 0:00:51]} a4 {[%emt 0:06:01]} 12. Bc2 {[%emt 0:00:04]} d5 {[%emt 0:00:14]} 13. exd5 {[%emt 0:04:00]} Qxd5 {[%emt 0:03:19]} 14. Ng3 {[%emt 0:01:33][%cal Od3d4]} Bb7 {[%emt 0:06:20]} 15. Be3 {[%emt 0:02:05]} Bf8 {[%emt 0:06:25]} 16. Bd2 {[%emt 0:23:54]} Qd7 {[%emt 0:15:54]} 17. Qe2 {[%emt 0:02:07]} b4 {[%emt 0:02:08]} 18. Rab1 {[%emt 0:16:44]} (18. Qd1 $11) 18... a3 {[%emt 0:08:45]} ({Black should play} 18... Ba6 $15 19. c4 Bb7) 19. Ne4 {[%emt 0:04:25]} Nxe4 {[%emt 0:02:46]} 20. Qxe4 {[%emt 0:00:07] [#] Now White is beyond hope.} (20. dxe4 $11 {and White has nothing to worry.} Ba6 21. Qe3) 20... Nd4 $1 $19 {[%emt 0:02:38][%mdl 512]} 21. Qxb7 {[%emt 0:00:54]} ({Don't go for} 21. Nxe5 $2 Bxe4 (21... Nxc2 22. Qxb7 Qd6 23. Rec1 $17) 22. Nxd7 Nxc2 $19 (22... bxc3 23. Bxc3 Nxc2 24. Rxe4 $11)) 21... Nxc2 {[%emt 0:00:03]} 22. Nxe5 {[%emt 0:19:46]} Qe6 {[%emt 0:02:57]} 23. Rec1 {[%emt 0:00:58]} (23. b3 Nxe1 24. Rxe1) 23... b3 {[%emt 0:00:14]} ({Not} 23... Qxa2 24. Nc4 $17) 24. Qxb3 {[%emt 0:04:06]} Qxb3 {[%emt 0:00:17]} 25. axb3 {[%emt 0:00:01]} a2 {[%emt 0:00:06]} 26. Nc4 {[%emt 0:00:47]} a1=Q {[%emt 0:00:19]} 27. Rxa1 {[%emt 0:00:20]} Nxa1 {[%emt 0:00:03]} ({Resist} 27... Rxa1 28. Rxa1 Nxa1 29. b4 $19) 28. b4 {[%emt 0:00:15]} Nb3 {[%emt 0:00:04] Wards off Na5} 29. Rd1 {[%emt 0:00:06]} Nxd2 {[%emt 0:00:24]} 30. Nxd2 {[%emt 0:00:16]} Rad8 {[%emt 0:15:15]} 31. Nc4 {[%emt 0:00:14]} Re2 {[%emt 0:00:30]} 32. d4 {[%emt 0:02:03]} Rde8 {[%emt 0:00:46]} 33. g4 {[%emt 0:01:27]} Rc2 {[%emt 0:01:46] Black is clearly winning.} 34. Rd2 {[%emt 0:00:08]} Rc1+ {[%emt 0:00:09]} 35. Kg2 {[%emt 0:00:02]} Bxb4 {[%emt 0:00:05]} 36. Kf3 {[%emt 0:18:24] Weighted Error Value: White=0.32/Black=0.09 (flawless) .  Loses game:     	White=1     	---        Mistake:       	White=2     	Black=1      Inaccurate:     	White=2     	---        OK:         	White=15    	Black=16     Best:        	---       	Black=3      Brilliant:      	---       	Black=1} 0-1

[Event "Commonwealth CC-Open 2024"]
[Site "Malacca"]
[Date "2024.02.23"]
[Round "6.3"]
[White "Tin, Jingyao"]
[Black "Mohammad Nubairshah Shaikh"]
[Result "1-0"]
[ECO "E94"]
[WhiteElo "2563"]
[BlackElo "2428"]
[Annotator "RC"]
[PlyCount "67"]
[EventDate "2024.02.21"]
[EventCountry "MAS"]
[SourceTitle "playchess.com"]
[Source "ChessBase"]
[SourceQuality "1"]
[TimeControl "5400+30"]

1. d4 {[%emt 1:31:00]} Nf6 {[%emt 1:31:00]} 2. c4 {[%emt 0:00:00]} g6 {[%emt 0:00:00]} 3. Nc3 {[%emt 0:00:00]} d6 {[%emt 0:00:00]} 4. e4 {[%emt 0:00:00]} Bg7 {[%emt 0:00:00]} 5. Nf3 {[%emt 0:00:00]} O-O {[%emt 0:00:00]} 6. Be2 {[%emt 0:00:00]} e5 {[%emt 0:00:00]} 7. O-O {[%emt 0:00:00]} Na6 {[%emt 0:00:00]} 8. Be3 {[%emt 0:00:00]} Qe7 {[%emt 0:00:00]} 9. Qc2 {[%emt 0:00:00]} exd4 {[%emt 0:00:00]} 10. Nxd4 {[%emt 0:00:00]} c6 {[%emt 0:00:00]} 11. Rad1 {[%emt 0:00:00]} Re8 {[%emt 0:00:00]} 12. f3 {[%emt 0:00:00]} d5 {[%emt 0:00:00]} 13. cxd5 {[%emt 0:00:00]} Nb4 {[%emt 0:00:00]} 14. Qc1 {[%emt 0:00:00]} Nbxd5 {[%emt 0:00:00]} 15. Bf2 {[%emt 0:00:00]} Nxc3 {[%emt 0:00:00]} 16. bxc3 {[%emt 0:00:00]} Bd7 {[%emt 0:00:00]} 17. Rfe1 {[%emt 0:00:00]} Rad8 {[%emt 0:00:00]} 18. Bf1 {[%emt 0:00:00]} Bc8 {[%emt 0:00:00]} 19. Nb3 {[%emt 0:00:00]} Rxd1 {[%emt 0:00:00]} 20. Rxd1 {[%emt 0:00:00]} Qc7 {[%emt 0:00:00]} 21. a4 {[%emt 0:00:00]} Nd7 {[%emt 0:00:00]} 22. a5 {[%emt 0:00:00]} b6 {[%emt 0:00:00]} 23. axb6 {[%emt 0:00:00]} axb6 {[%emt 0:00:00]} 24. Nd4 {[%emt 0:00:00]} Be5 {[%emt 0:00:00]} 25. g3 {[%emt 0:00:00]} Nc5 {[%emt 0:00:00]} 26. Bg2 {[%emt 0:00:00]} Bg7 {[%emt 0:00:00]} 27. Qc2 {[%emt 0:00:00]} g5 {[%emt 0:00:00]} 28. Qe2 {[%emt 0:00:00]} h6 {[%emt 0:00:00]} 29. Qe3 {[%emt 0:03:44]} f5 {[%emt 0:00:00]} 30. Qe2 {[%emt 0:01:14]} Kh8 {[%emt 0:00:00]} 31. Qc2 {[%emt 0:00:50]} fxe4 {[%emt 0:00:00]} 32. fxe4 {[%emt 0:00:02]} Qe5 {[%emt 0:00:00]} 33. Qb1 {[%emt 0:02:56]} Rf8 {[%emt 0:05:14]} 34. Qxb6 {[%emt 0:01:44]} 1-0

[Event "Commonwealth CC-Open 2024"]
[Site "Malacca"]
[Date "2024.02.23"]
[Round "6.4"]
[White "Mitrabha, Guha"]
[Black "Wong, Zhenyong Jayden"]
[Result "1/2-1/2"]
[ECO "A37"]
[WhiteElo "2504"]
[BlackElo "2406"]
[Annotator "RC"]
[PlyCount "114"]
[EventDate "2024.02.21"]
[EventCountry "MAS"]
[SourceTitle "playchess.com"]
[Source "ChessBase"]
[SourceQuality "1"]
[TimeControl "5400+30"]

1. c4 c5 2. Nc3 g6 3. g3 Bg7 4. Bg2 Nc6 5. a3 a6 6. Rb1 Rb8 7. b4 cxb4 8. axb4 b5 9. cxb5 axb5 10. Nf3 d5 11. d4 Bf5 12. Rb2 Nf6 13. Bf4 Rb6 14. Ne5 Ne4 15. Nxe4 Bxe4 16. f3 Bf5 17. g4 Nxe5 18. Bxe5 Bxe5 19. dxe5 Be6 20. Rc2 Rb7 21. Qd4 Rc7 22. Rxc7 Qxc7 23. Kd2 O-O 24. Rc1 Qb8 25. Bf1 f6 26. exf6 Rxf6 27. Rc6 Kf7 28. h4 Qf4+ 29. Qxf4 Rxf4 30. e3 Rxb4 31. Bd3 d4 32. exd4 Rxd4 33. Ke3 Rb4 34. Rb6 Bc4 35. Be4 Rb2 36. Kf4 b4 37. Kg5 Kg7 38. Rb7 h6+ 39. Kf4 b3 40. Rxe7+ Kf6 41. Rb7 g5+ 42. hxg5+ hxg5+ 43. Ke3 Be6 44. Rb6 Ke5 45. Rb5+ Kf6 46. f4 gxf4+ 47. Kxf4 Rf2+ 48. Ke3 Rf1 49. g5+ Kg7 50. Rb7+ Rf7 51. Rb6 Re7 52. Kf4 Bf7 53. Bf5 Ra7 54. Rh6 Ra4+ 55. Ke3 Ra5 56. Kf4 Ra4+ 57. Ke3 {[%emt 1:21:00]} Ra5 {[%emt 1:52:32]} 1/2-1/2

[Event "Commonwealth CC-Open 2024"]
[Site "Malacca"]
[Date "2024.02.23"]
[Round "6.5"]
[White "Deepan Chakkravarthy J."]
[Black "Vignesh N R"]
[Result "1/2-1/2"]
[ECO "D04"]
[WhiteElo "2422"]
[BlackElo "2517"]
[Annotator "TA"]
[PlyCount "28"]
[EventDate "2024.02.21"]
[EventCountry "MAS"]
[SourceTitle "playchess.com"]
[Source "ChessBase"]
[SourceQuality "1"]
[TimeControl "5400+30"]

{[%evp 9,28,10,64,57,66,67,61,55,61,51,56,48,43,36,38,29,38,43,66,54,67]} 1. d4 {[%emt 0:01:17]} Nf6 {[%emt 0:02:48]} 2. Nf3 {[%emt 0:00:05]} d5 {[%emt 0:00:43]} 3. e3 {[%emt 0:03:23]} c5 {[%emt 0:05:11][%cal Bc7c5,Bc5c4][%mdl 32]} 4. Bd3 {[%emt 0:00:15]} c4 {[%emt 0:05:27]} 5. Be2 {[%emt 0:00:04]} g6 {[%emt 0:00:26]} (5... a6 $11) 6. O-O $14 {[%emt 0:00:40]} Bg7 {[%emt 0:00:06]} 7. b3 {[%emt 0:00:04]} cxb3 {[%emt 0:00:04]} 8. axb3 {[%emt 0:02:47]} O-O {[%emt 0:00:07]} 9. Ne5 {[%emt 0:02:29]} Nc6 {[%emt 0:05:35]} 10. Nxc6 {[%emt 0:10:27]} bxc6 {[%emt 0:00:02]} 11. Ba3 {[%emt 0:00:10]} Re8 {[%emt 0:08:32]} 12. Nd2 {[%emt 0:05:07]} Nd7 {[%emt 0:05:24]} 13. Ra2 {[%emt 0:01:29]} Qb6 {[%emt 0:04:47]} 14. Bb2 {[%emt 0:02:38]} c5 {[%emt 0:16:57] Weighted Error Value: White=0.04 (flawless) /Black=0.15 (very precise) .  OK:         	White=3     	Black=4} 1/2-1/2

[Event "Commonwealth CC-Open 2024"]
[Site "Malacca"]
[Date "2024.02.23"]
[Round "6.10"]
[White "Lim, Zhuo Ren"]
[Black "Masli, Muhd Nur Daie"]
[Result "1-0"]
[ECO "E05"]
[WhiteElo "2218"]
[BlackElo "1867"]
[Annotator "RC"]
[PlyCount "107"]
[EventDate "2024.02.21"]
[EventCountry "MAS"]
[SourceTitle "playchess.com"]
[Source "ChessBase"]
[SourceQuality "1"]
[TimeControl "5400+30"]

1. Nf3 Nf6 2. c4 e6 3. g3 Be7 4. Bg2 O-O 5. O-O d5 6. d4 dxc4 7. Qc2 b5 8. a4 b4 9. Nbd2 Bb7 10. Nxc4 Nbd7 11. Nfe5 Bxg2 12. Kxg2 Nxe5 13. dxe5 Nd5 14. e4 Nb6 15. Rd1 Qc8 16. Be3 Nxc4 17. Qxc4 c5 18. Rac1 Qc6 19. b3 Rac8 20. f3 Qc7 21. f4 Qc6 22. Kf3 Rc7 23. Rc2 Rfc8 24. g4 h6 25. h4 g6 26. h5 g5 27. f5 Bf8 28. Rcd2 Rb7 29. Bf2 Re8 30. Bg3 Rc8 31. Kg2 Rcc7 32. Rd6 Bxd6 33. exd6 Rd7 34. fxe6 fxe6 35. Qxe6+ Rf7 36. Rf1 Qd7 37. Qxd7 Rbxd7 38. Rc1 Rh7 39. Rxc5 Kf7 40. Kf3 Ke6 41. Ke3 Rhf7 42. Rf5 Rd8 43. Kd4 Rc8 44. Be1 a5 45. Rxa5 Rf3 46. Bxb4 Rxb3 47. Re5+ Kf6 48. Rb5 Ke6 49. Bc5 Rg3 50. Rb7 Re8 51. a5 Rxg4 52. a6 Kf6 53. Re7 Ra8 {[%emt 1:48:16]} 54. Kd5 {[%emt 1:52:35]} 1-0

[Event "Commonwealth CC-Open 2024"]
[Site "Malacca"]
[Date "2024.02.23"]
[Round "6.11"]
[White "Novak, Attila Robert"]
[Black "Chong, Jin Cheng"]
[Result "1-0"]
[ECO "E62"]
[WhiteElo "2130"]
[BlackElo "1706"]
[Annotator "RC"]
[PlyCount "77"]
[EventDate "2024.02.21"]
[EventCountry "MAS"]
[SourceTitle "playchess.com"]
[Source "ChessBase"]
[SourceQuality "1"]
[TimeControl "5400+30"]

1. d4 Nf6 2. Nf3 g6 3. c4 Bg7 4. g3 O-O 5. Bg2 d6 6. Nc3 Nc6 7. O-O Bg4 8. d5 Na5 9. b3 c5 10. Bd2 a6 11. Rc1 Rb8 12. h3 Bd7 13. e4 b5 14. e5 Ne8 15. Ne4 Nb7 16. Bc3 Qc7 17. exd6 Nbxd6 18. Bxg7 Kxg7 19. Re1 bxc4 20. bxc4 Bf5 21. Ned2 Nf6 22. g4 Bc8 23. Ne5 e6 24. Nc6 Rb2 25. Rc2 Rxc2 26. Qxc2 Kg8 27. Nb3 Nb7 28. Qd2 Ne8 29. Qg5 Ng7 30. Qf6 h6 31. Nd2 Re8 32. Ne4 h5 33. Qg5 Bd7 34. Nf6+ Kf8 35. Qh6 Bxc6 36. dxc6 Qa5 37. Rd1 Qc3 38. Nxe8 Kxe8 {[%emt 1:45:25]} 39. cxb7 {[%emt 1:40:52]} 1-0

[Event "Commonwealth CC-Open 2024"]
[Site "Malacca"]
[Date "2024.02.23"]
[Round "6.12"]
[White "Pon, Matt"]
[Black "Gomes, Mary Ann"]
[Result "1-0"]
[ECO "A05"]
[WhiteElo "2202"]
[BlackElo "2332"]
[Annotator "RC"]
[PlyCount "151"]
[EventDate "2024.02.21"]
[EventCountry "MAS"]
[SourceTitle "playchess.com"]
[Source "ChessBase"]
[SourceQuality "1"]
[TimeControl "5400+30"]

1. e4 c5 2. Nf3 d6 3. g3 Nc6 4. Bg2 g6 5. O-O Bg7 6. c3 e5 7. d3 Nf6 8. Re1 O-O 9. Nbd2 h6 10. h3 Be6 11. a3 a5 12. a4 d5 13. exd5 Nxd5 14. Nc4 Qc7 15. Qb3 Rad8 16. Qb5 b6 17. Bd2 Rfe8 18. Rad1 Kh7 19. Bc1 f5 20. Nfd2 Na7 21. Qb3 Nc8 22. Re2 Nf6 23. Qc2 Nd7 24. Rde1 Bf7 25. Na3 Nd6 26. b3 Re7 27. Nb5 Nxb5 28. axb5 Nf6 29. Bc6 Bd5 30. Bxd5 Nxd5 31. Nc4 Rde8 32. Ne3 Nf6 33. Nc4 Nd5 34. Ne3 Nxe3 35. Rxe3 Qd7 36. c4 g5 37. Bb2 Kg8 38. Kh2 Qd6 39. Qe2 Qg6 40. Bc3 h5 41. Qf3 e4 42. dxe4 fxe4 43. Qd1 Bxc3 44. Rxc3 g4 45. Qd5+ Kg7 46. Rce3 Re5 47. Qd2 R8e7 48. Qc3 Kh7 49. Qd2 Qf5 50. hxg4 hxg4 51. Rd1 R5e6 52. Kg2 Rf7 53. Rh1+ Kg7 54. Re2 Ref6 55. Rh4 Rd7 56. Qe3 Rd4 57. Qf4 Qxf4 58. gxf4 Rxf4 59. Kg3 Rf3+ 60. Kg2 Rxb3 61. Rxg4+ Kf7 62. Rf4+ Ke6 63. Rexe4+ Rxe4 64. Rxe4+ Kd7 65. f4 a4 66. f5 a3 67. f6 a2 68. Re7+ Kd6 69. Re1 Ra3 70. f7 Ra8 71. Re8 Rxe8 72. fxe8=Q a1=Q 73. Qd8+ Ke6 74. Qxb6+ Kd7 75. Qb7+ Ke6 {[%emt 2:08:00]} 76. Qa6+ {[%emt 1:52:39]} 1-0

[Event "Commonwealth CC-Open 2024"]
[Site "Malacca"]
[Date "2024.02.23"]
[Round "6.13"]
[White "Tan, Yi Xun"]
[Black "Iniyan, Pa"]
[Result "0-1"]
[ECO "E04"]
[WhiteElo "1828"]
[BlackElo "2515"]
[Annotator "RC"]
[PlyCount "90"]
[EventDate "2024.02.21"]
[EventCountry "MAS"]
[SourceTitle "playchess.com"]
[Source "ChessBase"]
[SourceQuality "1"]
[TimeControl "5400+30"]

1. d4 Nf6 2. c4 e6 3. g3 d5 4. Bg2 c6 5. Nf3 dxc4 6. O-O b5 7. Ne5 Bb7 8. a4 a6 9. b3 cxb3 10. Bb2 Nd5 11. Qxb3 Nd7 12. Nd3 Be7 13. Rc1 Rb8 14. a5 O-O 15. Nd2 Ba8 16. Ne4 b4 17. Nec5 Nxc5 18. Nxc5 Nc7 19. Rc4 Rb5 20. Qc2 Nd5 21. e4 Nc7 22. Nb3 Qd7 23. Rc1 Rd8 24. Qe2 Bf8 25. h4 Rbb8 26. Qg4 Nb5 27. Nc5 Qa7 28. h5 Na3 29. Bxa3 bxa3 30. Qf3 e5 31. Qxa3 exd4 32. Qf3 Rb5 33. Nb3 c5 34. Bf1 Rdb8 35. Nxd4 Rxa5 36. Nf5 Re8 37. Qg4 g6 38. Rd1 Qb6 39. Rd7 Qe6 40. hxg6 hxg6 41. Ne3 Bxe4 42. Qxe6 Rxe6 43. Ra7 Ra1 44. Kh2 g5 45. Ng4 {[%emt 1:47:54]} Bd5 {[%emt 1:33:15]} 0-1

[Event "Commonwealth CC-Open 2024"]
[Site "Malacca"]
[Date "2024.02.23"]
[Round "6.14"]
[White "Sanudula, K M Dahamdi"]
[Black "Gong, Qianyun"]
[Result "0-1"]
[ECO "D00"]
[WhiteElo "1744"]
[BlackElo "2263"]
[Annotator "RC"]
[PlyCount "142"]
[EventDate "2024.02.21"]
[EventCountry "MAS"]
[SourceTitle "playchess.com"]
[Source "ChessBase"]
[SourceQuality "1"]
[TimeControl "5400+30"]

1. d4 e6 2. e3 Nf6 3. Bd3 d5 4. Nd2 c5 5. c3 Be7 6. f4 b6 7. Ngf3 O-O 8. Ne5 Ba6 9. Bxa6 Nxa6 10. Qe2 Nc7 11. O-O Rc8 12. Ndf3 Nce8 13. Bd2 Nd6 14. Be1 Nfe4 15. Nd2 Nxd2 16. Bxd2 Qe8 17. Rfe1 Ne4 18. Nd3 Nd6 19. Nf2 f5 20. Rec1 Bf6 21. Kh1 Kh8 22. Be1 Rc7 23. Nd3 Qb5 24. Rc2 Rfc8 25. Rac1 Qa4 26. b3 Qe8 27. Nb2 c4 28. bxc4 Nxc4 29. Nxc4 Rxc4 30. Rb1 b5 31. Rcb2 a6 32. g4 fxg4 33. Qxg4 Qf7 34. Rg2 g6 35. Qf3 Bg7 36. Qg4 Rf8 37. Rbb2 Qe8 38. Rbf2 a5 39. h4 Rf5 40. Qe2 Bf6 41. Rh2 Rh5 42. Rf1 Qe7 43. Qb2 b4 44. cxb4 axb4 45. Qf2 Qf8 46. Rg1 Be7 47. Qf3 Qf5 48. Bg3 Rc3 49. Be1 Ra3 50. Bg3 Qd3 51. Re1 Bf6 52. Qf2 Qe4+ 53. Kg1 Kg7 54. Re2 Qd3 55. Rg2 Rc3 56. Kh2 Qf5 57. Kg1 Qg4 58. Re1 Qf5 59. Kh2 Qe4 60. Re2 Rf5 61. Qe1 Be7 62. Bf2 Qf3 63. Rg3 Qe4 64. Rg2 Rf8 65. Qh1 Rxf4 66. exf4 Qxe2 67. Be1 Qe4 68. Bxc3 Qxf4+ 69. Kg1 bxc3 70. Rf2 Qxd4 71. Qf3 {[%emt 1:42:43]} Bc5 {[%emt 2:01:52]} 0-1

[Event "Commonwealth CC-Open 2024"]
[Site "Malacca"]
[Date "2024.02.23"]
[Round "6.17"]
[White "Dabarera, G W D M"]
[Black "Vrashank Chouhan"]
[Result "1-0"]
[ECO "C13"]
[WhiteElo "1771"]
[BlackElo "2046"]
[Annotator "RC"]
[PlyCount "111"]
[EventDate "2024.02.21"]
[EventCountry "MAS"]
[SourceTitle "playchess.com"]
[Source "ChessBase"]
[SourceQuality "1"]
[TimeControl "5400+30"]

1. e4 e6 2. d4 d5 3. Nc3 Nf6 4. Bg5 dxe4 5. Nxe4 Be7 6. Bxf6 gxf6 7. Nf3 b6 8. Bb5+ Bd7 9. Bd3 Bc6 10. Qe2 Qd5 11. Ned2 Qa5 12. c3 Bb7 13. a4 Qh5 14. a5 bxa5 15. Be4 Ba6 16. Qe3 c6 17. b4 Bd8 18. bxa5 Be7 19. c4 f5 20. Bd3 Nd7 21. Ne5 Nxe5 22. Qxe5 O-O 23. h4 Qh6 24. Rh3 Bf6 25. Rg3+ Kh8 26. Qc5 Rad8 27. Nf3 Qf4 28. Qxc6 Bxd4 29. Nxd4 Qxd4 30. Rd1 Qc3+ 31. Ke2 Qxa5 32. Qf3 Qc3 33. Qf4 Qd4 34. Qxd4+ Rxd4 35. c5 Rfd8 36. c6 f4 37. c7 Re8 38. Bxa6 Rxd1 39. Kxd1 fxg3 40. fxg3 Kg7 41. c8=Q Rxc8 42. Bxc8 Kf6 43. Ba6 Ke5 44. Ke2 Kd4 45. g4 h6 46. Kf3 Ke5 47. g3 f6 48. Ke3 f5 49. g5 hxg5 50. hxg5 Kd6 51. Kf4 Ke7 52. Ke5 Kf7 53. Bc4 Kg6 54. Bxe6 Kxg5 55. Bxf5 a5 {[%emt 1:54:41]} 56. g4 {[%emt 1:48:32]} 1-0

[Event "Commonwealth CC-Open 2024"]
[Site "Malacca"]
[Date "2024.02.23"]
[Round "6.18"]
[White "Chitlange Sakshi"]
[Black "Kapoor, Satvik"]
[Result "1/2-1/2"]
[ECO "D91"]
[WhiteElo "2210"]
[BlackElo "1791"]
[Annotator "RC"]
[PlyCount "51"]
[EventDate "2024.02.21"]
[EventCountry "MAS"]
[SourceTitle "playchess.com"]
[Source "ChessBase"]
[SourceQuality "1"]
[TimeControl "5400+30"]

1. d4 Nf6 2. c4 g6 3. Nc3 d5 4. Nf3 Bg7 5. Bg5 Ne4 6. Bf4 c6 7. e3 O-O 8. cxd5 cxd5 9. Bd3 Nxc3 10. bxc3 Qa5 11. Qb3 Nd7 12. O-O Nb6 13. Rfb1 Bd7 14. Bc7 Rfc8 15. Bxb6 axb6 16. c4 Be6 17. cxd5 Bxd5 18. Qd1 Bxf3 19. Qxf3 e5 20. Rd1 exd4 21. exd4 Qc3 22. Be4 Bxd4 23. Qxc3 Bxc3 24. Bxb7 Bxa1 25. Bxa8 Bb2 {[%emt 0:23:02]} 26. Bd5 {[%emt 1:05:47]} 1/2-1/2

[Event "Commonwealth CC-Open 2024"]
[Site "Malacca"]
[Date "2024.02.23"]
[Round "6.19"]
[White "Chong, Hao Ern"]
[Black "Anderson, Gavin"]
[Result "0-1"]
[ECO "B13"]
[WhiteElo "1691"]
[BlackElo "2159"]
[Annotator "RC"]
[PlyCount "70"]
[EventDate "2024.02.21"]
[EventCountry "MAS"]
[SourceTitle "playchess.com"]
[Source "ChessBase"]
[SourceQuality "1"]
[TimeControl "5400+30"]

1. e4 c6 2. d4 d5 3. exd5 cxd5 4. Bd3 Nc6 5. c3 Qc7 6. Ne2 Bg4 7. O-O e6 8. Qe1 Nf6 9. f3 Bh5 10. Qh4 Rg8 11. Bg5 Bg6 12. Bxg6 hxg6 13. Bxf6 gxf6 14. Qxf6 Be7 15. Qf4 Bd6 16. Qh4 g5 17. Qh7 O-O-O 18. h3 Rh8 19. Qd3 f5 20. Nd2 Rdg8 21. Kf2 g4 22. hxg4 fxg4 23. fxg4 Rxg4 24. Rh1 Bg3+ 25. Qxg3 Rf8+ 26. Qf3 Rxf3+ 27. Nxf3 Qg7 28. Rh2 Kc7 29. Rah1 Kb6 30. g3 Qg6 31. Rh6 Qc2 32. Rxe6 Re4 33. Rxe4 dxe4 34. Ne5 Nxe5 35. dxe5 {[%emt 1:19:15]} Qxb2 {[%emt 1:35:58]} 0-1